{"text_format":"3","workbook":"xlsx","n_sheets":2,"sheets":["Kiadások","Kategória"],"not_rendered":{"defined_names":5},"read":"whole","date_system":"1900"}

{"sheet":"Kiadások","index":0,"n_rows":25,"n_cols":7,"rows_kept":25,"merged":[[0,1,0,5],[1,1,1,6]]}
[null,"KIADÁSI KÖLTSÉGVETÉS",{"$nulls":4},{"$f":"TODAY()","v":{"v":43270,"d":"4327000.00%"}}]
[null,"Cégnév"]
[null,"Kiadás","Kategória","Költségvetés","Tényleges","Különbözet (Ft)","Különbözet (%)"]
[null,"Reklám","Működés",null,null,{"$f":"IFERROR(SUM(Kiadások[Költségvetés]-Kiadások[Tényleges]), \"\")","v":0},{"$f":"IFERROR(SUM(Kiadások[Különbözet (Ft)]/Kiadások[Költségvetés]),\"\")","v":""}]
[null,"Tartozások","Működés",null,null,{"$f":"IFERROR(SUM(Kiadások[Költségvetés]-Kiadások[Tényleges]), \"\")","v":0},{"$f":"IFERROR(SUM(Kiadások[Különbözet (Ft)]/Kiadások[Költségvetés]),\"\")","v":""}]
[null,"Juttatások","Működés",null,null,{"$f":"IFERROR(SUM(Kiadások[Költségvetés]-Kiadások[Tényleges]), \"\")","v":0},{"$f":"IFERROR(SUM(Kiadások[Különbözet (Ft)]/Kiadások[Költségvetés]),\"\")","v":""}]
[null,"Kellékek","Működés",null,null,{"$f":"IFERROR(SUM(Kiadások[Költségvetés]-Kiadások[Tényleges]), \"\")","v":0},{"$f":"IFERROR(SUM(Kiadások[Különbözet (Ft)]/Kiadások[Költségvetés]),\"\")","v":""}]
[null,"Postaköltség","Működés",null,null,{"$f":"IFERROR(SUM(Kiadások[Költségvetés]-Kiadások[Tényleges]), \"\")","v":0},{"$f":"IFERROR(SUM(Kiadások[Különbözet (Ft)]/Kiadások[Költségvetés]),\"\")","v":""}]
[null,"Bérlet vagy jelzálog","Működés",null,null,{"$f":"IFERROR(SUM(Kiadások[Költségvetés]-Kiadások[Tényleges]), \"\")","v":0},{"$f":"IFERROR(SUM(Kiadások[Különbözet (Ft)]/Kiadások[Költségvetés]),\"\")","v":""}]
[null,"Értékesítési kiadások","Működés",null,null,{"$f":"IFERROR(SUM(Kiadások[Költségvetés]-Kiadások[Tényleges]), \"\")","v":0},{"$f":"IFERROR(SUM(Kiadások[Különbözet (Ft)]/Kiadások[Költségvetés]),\"\")","v":""}]
[null,"Adók","Működés",null,null,{"$f":"IFERROR(SUM(Kiadások[Költségvetés]-Kiadások[Tényleges]), \"\")","v":0},{"$f":"IFERROR(SUM(Kiadások[Különbözet (Ft)]/Kiadások[Költségvetés]),\"\")","v":""}]
[null,"Közművek","Működés",null,null,{"$f":"IFERROR(SUM(Kiadások[Költségvetés]-Kiadások[Tényleges]), \"\")","v":0},{"$f":"IFERROR(SUM(Kiadások[Különbözet (Ft)]/Kiadások[Költségvetés]),\"\")","v":""}]
[null,"Egyéb","Működés",null,null,{"$f":"IFERROR(SUM(Kiadások[Költségvetés]-Kiadások[Tényleges]), \"\")","v":0},{"$f":"IFERROR(SUM(Kiadások[Különbözet (Ft)]/Kiadások[Költségvetés]),\"\")","v":""}]
[null,"Biztosítás","Működés",null,null,{"$f":"IFERROR(SUM(Kiadások[Költségvetés]-Kiadások[Tényleges]), \"\")","v":0},{"$f":"IFERROR(SUM(Kiadások[Különbözet (Ft)]/Kiadások[Költségvetés]),\"\")","v":""}]
[null,"Kamat","Működés",null,null,{"$f":"IFERROR(SUM(Kiadások[Költségvetés]-Kiadások[Tényleges]), \"\")","v":0},{"$f":"IFERROR(SUM(Kiadások[Különbözet (Ft)]/Kiadások[Költségvetés]),\"\")","v":""}]
[null,"Telefon","Működés",null,null,{"$f":"IFERROR(SUM(Kiadások[Költségvetés]-Kiadások[Tényleges]), \"\")","v":0},{"$f":"IFERROR(SUM(Kiadások[Különbözet (Ft)]/Kiadások[Költségvetés]),\"\")","v":""}]
[null,"Karbantartás és javítások","Működés",null,null,{"$f":"IFERROR(SUM(Kiadások[Költségvetés]-Kiadások[Tényleges]), \"\")","v":0},{"$f":"IFERROR(SUM(Kiadások[Különbözet (Ft)]/Kiadások[Költségvetés]),\"\")","v":""}]
[null,"Jogi kiadások","Működés",null,null,{"$f":"IFERROR(SUM(Kiadások[Költségvetés]-Kiadások[Tényleges]), \"\")","v":0},{"$f":"IFERROR(SUM(Kiadások[Különbözet (Ft)]/Kiadások[Költségvetés]),\"\")","v":""}]
[null,"Értékcsökkenés","Működés",null,null,{"$f":"IFERROR(SUM(Kiadások[Költségvetés]-Kiadások[Tényleges]), \"\")","v":0},{"$f":"IFERROR(SUM(Kiadások[Különbözet (Ft)]/Kiadások[Költségvetés]),\"\")","v":""}]
[null,"Szállítás","Működés",null,null,{"$f":"IFERROR(SUM(Kiadások[Költségvetés]-Kiadások[Tényleges]), \"\")","v":0},{"$f":"IFERROR(SUM(Kiadások[Különbözet (Ft)]/Kiadások[Költségvetés]),\"\")","v":""}]
[null,"Tárolás","Működés",null,null,{"$f":"IFERROR(SUM(Kiadások[Költségvetés]-Kiadások[Tényleges]), \"\")","v":0},{"$f":"IFERROR(SUM(Kiadások[Különbözet (Ft)]/Kiadások[Költségvetés]),\"\")","v":""}]
[null,"Üzlet","Személyes",null,null,{"$f":"IFERROR(SUM(Kiadások[Költségvetés]-Kiadások[Tényleges]), \"\")","v":0},{"$f":"IFERROR(SUM(Kiadások[Különbözet (Ft)]/Kiadások[Költségvetés]),\"\")","v":""}]
[null,"Értékesítők","Személyes",null,null,{"$f":"IFERROR(SUM(Kiadások[Költségvetés]-Kiadások[Tényleges]), \"\")","v":0},{"$f":"IFERROR(SUM(Kiadások[Különbözet (Ft)]/Kiadások[Költségvetés]),\"\")","v":""}]
[null,"Egyéb","Személyes",null,null,{"$f":"IFERROR(SUM(Kiadások[Költségvetés]-Kiadások[Tényleges]), \"\")","v":0},{"$f":"IFERROR(SUM(Kiadások[Különbözet (Ft)]/Kiadások[Költségvetés]),\"\")","v":""}]
[null,"Összes kiadás",null,{"$f":"IFERROR(SUM(Kiadások[Költségvetés]), \"\")","v":0},{"$f":"IFERROR(SUM(Kiadások[Tényleges]), \"\")","v":0},{"$f":"IFERROR(SUM(Kiadások[Különbözet (Ft)]), \"\")","v":0},{"$f":"IFERROR(SUM(Kiadások[[#Totals],[Különbözet (Ft)]]/Kiadások[[#Totals],[Költségvetés]]),\"\")","v":""}]

{"sheet":"Kategória","index":1,"n_rows":4,"n_cols":2,"rows_kept":4}
[null,"Kategória keresése"]
[null,"Kategória"]
[null,"Működés"]
[null,"Személyes"]